bitfinex/quotes_BTCUSD_20240703
["timestamp","ask_amount","ask_price","bid_price","bid_amount"]
[1720008275503,0.02115896,60379.0,60378.0,0.6978228]
[1720008277388,0.02115754,60379.0,60378.0,0.6978228]
[1720008277576,0.02115754,60379.0,60378.0,0.6977228]
[1720008278428,0.02115754,60379.0,60378.0,0.7277228]
[1720008278636,0.02115806,60379.0,60378.0,0.7277228]
[1720008279842,0.02049116,60398.0,60393.0,0.0302]
[1720008280044,0.10084,60405.0,60395.0,0.31035582]
[1720008280045,0.13477947,60397.0,60395.0,0.31035582]
[1720008280246,0.13477947,60397.0,60396.0,0.5012988]
[1720008280247,0.09041206,60397.0,60396.0,0.5012988]
[1720008280451,0.13477423,60397.0,60396.0,0.4710988]
[1720008280648,0.23477423,60397.0,60396.0,0.1602988]
[1720008281404,0.14436217,60397.0,60396.0,0.1602988]
[1720008281632,0.14436217,60397.0,60395.0,0.2]
[1720008281858,0.04436217,60396.0,60395.0,0.2]
[1720008282289,0.02131255,60405.0,60395.0,0.2]
[1720008282290,0.014,60397.0,60395.0,0.2]
[1720008282489,0.04140369,60396.0,60395.0,0.2]
[1720008283537,0.04140369,60396.0,60395.0,0.201]
[1720008283773,0.14028005,60396.0,60395.0,0.201]
[1720008283984,0.24028005,60396.0,60395.0,0.201]
[1720008284972,0.25295826,60396.0,60395.0,0.201]
[1720008285440,0.26595826,60396.0,60395.0,0.002]
[1720008285647,0.29265409,60396.0,60395.0,0.002]
[1720008285851,0.27965409,60396.0,60392.0,0.2]
[1720008286072,0.15406282,60395.0,60391.0,0.2]
[1720008286286,0.05406282,60394.0,60390.0,0.2]
[1720008286497,0.15274278,60394.0,60390.0,0.2]
[1720008286698,0.15406282,60393.0,60390.0,0.2]
[1720008286901,0.05406282,60392.0,60389.0,0.2]
[1720008287110,0.05406282,60391.0,60389.0,0.2]
[1720008287312,0.05406282,60390.0,60389.0,0.2]
[1720008287961,0.05406282,60390.0,60385.0,0.2]
[1720008288171,0.12227157,60393.0,60384.0,0.4772]
[1720008288172,0.16382731,60389.0,60384.0,0.4772]
[1720008288372,0.05986635,60388.0,60385.0,0.2]
[1720008288579,0.05986635,60387.0,60385.0,0.2]
[1720008288785,0.05986635,60386.0,60385.0,0.2]
[1720008289611,0.10396096,60386.0,60385.0,0.2]
[1720008289760,0.26382731,60386.0,60385.0,0.2]
[1720008289920,0.28376856,60386.0,60385.0,0.2]
[1720008290133,0.29676856,60386.0,60385.0,0.201]
[1720008291367,0.29385074,60386.0,60385.0,0.201]
[1720008291768,0.28085074,60386.0,60385.0,0.2]
[1720008291920,0.30885074,60386.0,60385.0,0.2]
[1720008292123,0.32573581,60386.0,60381.0,0.2]
[1720008292327,0.17825618,60385.0,60381.0,0.2]
[1720008292541,0.17825618,60385.0,60378.0,0.001024]
[1720008292542,0.07825618,60384.0,60378.0,0.001024]
[1720008292736,0.07825618,60384.0,60379.0,0.2]
[1720008292737,0.0199537,60383.0,60379.0,0.2]
[1720008292939,0.07825618,60382.0,60379.0,0.2]
[1720008293097,0.07825618,60381.0,60379.0,0.2]
[1720008293302,0.10259456,60384.0,60379.0,0.2]
[1720008293303,0.05271219,60384.0,60379.0,0.2]
[1720008293502,0.09246192,60384.0,60378.0,0.001024]
[1720008293958,0.028,60386.0,60378.0,0.001024]
[1720008294126,0.03418879,60386.0,60378.0,0.001024]
[1720008294326,0.014,60385.0,60378.0,0.001024]
[1720008294670,0.03418879,60386.0,60378.0,0.001024]
[1720008294876,0.02018879,60386.0,60378.0,0.001024]
[1720008295092,0.014,60382.0,60378.0,0.001024]
[1720008295648,0.14600888,60385.0,60378.0,0.001024]
[1720008295849,0.632846,60384.0,60379.0,0.0001]
[1720008296050,0.1,60383.0,60379.0,0.0001]
[1720008296738,0.014,60382.0,60379.0,0.0001]
[1720008296979,0.03066133,60382.0,60379.0,0.0001]
[1720008297449,0.01341543,60382.0,60379.0,0.0001]
[1720008297668,0.01341543,60382.0,60378.0,0.001024]
[1720008298090,0.02741543,60382.0,60378.0,0.001024]
[1720008298467,0.02741543,60382.0,60378.0,1e-06]
[1720008298673,0.01341543,60382.0,60378.0,1e-06]
[1720008298866,0.04133154,60381.0,60379.0,0.0001]
[1720008299059,0.04133154,60381.0,60378.0,1e-06]
[1720008299277,0.10127884,60380.0,60378.0,1e-06]
[1720008299459,0.1,60379.0,60378.0,1e-06]
[1720008300844,0.10670652,60379.0,60378.0,1e-06]
[1720008300966,1.28645097,60379.0,60378.0,1e-06]
[1720008301363,1.64979633,60379.0,60378.0,1e-06]
[1720008301774,1.21697488,60379.0,60378.0,1e-06]
[1720008301982,0.81421688,60379.0,60378.0,1e-06]
[1720008302455,0.80021688,60379.0,60378.0,1e-06]
[1720008302612,0.81421688,60379.0,60378.0,1e-06]
[1720008303021,0.957965,60379.0,60378.0,1e-06]
[1720008303218,1.4192368,60379.0,60378.0,1e-06]
[1720008303426,1.43127732,60379.0,60378.0,1e-06]
[1720008303631,1.90577732,60379.0,60378.0,1e-06]
[1720008304202,1.93377732,60379.0,60378.0,1e-06]
[1720008305852,1.91977732,60379.0,60378.0,1e-06]
[1720008306169,1.95471107,60379.0,60378.0,1e-06]
[1720008306621,1.66573837,60379.0,60378.0,1e-06]
[1720008306839,1.66524296,60379.0,60378.0,1e-06]
[1720008307210,1.65124296,60379.0,60378.0,1e-06]
[1720008307423,1.66524296,60379.0,60378.0,1e-06]
[1720008307621,1.68824296,60379.0,60378.0,1e-06]
[1720008308667,1.81883462,60379.0,60378.0,1e-06]
[1720008308867,1.80483462,60379.0,60378.0,1e-06]
[1720008309075,1.80483462,60379.0,60356.0,0.0302]
[1720008309076,0.1745,60363.0,60351.0,0.3133]
[1720008309221,0.8530838,60362.0,60352.0,0.2]
[1720008309430,0.80173686,60361.0,60351.0,0.3133]
[1720008309632,0.09245186,60360.0,60352.0,0.2]
[1720008309799,0.29460812,60359.0,60352.0,0.2]
[1720008310004,0.19244996,60358.0,60352.0,0.2]
[1720008310243,0.09244996,60357.0,60352.0,0.2]
[1720008311638,0.10644996,60357.0,60352.0,0.2]
[1720008311809,0.19244996,60356.0,60352.0,0.2]
[1720008312006,0.19244996,60355.0,60352.0,0.2]
[1720008312208,0.09244996,60354.0,60352.0,0.2]
[1720008312442,0.0999,60355.0,60352.0,0.2]
[1720008312750,0.09313859,60354.0,60352.0,0.2]
[1720008312954,0.06553695,60353.0,60351.0,0.3133]
[1720008313068,0.028,60357.0,60351.0,0.3133]
[1720008313069,0.06543695,60352.0,60351.0,0.3133]
[1720008313278,0.028,60357.0,60351.0,0.3133]
[1720008313477,0.03282988,60357.0,60351.0,0.3133]
[1720008313672,0.014,60355.0,60351.0,0.3133]
[1720008314114,0.014,60354.0,60351.0,0.3133]
[1720008314320,0.0139,60354.0,60351.0,0.3133]
[1720008314526,0.05314844,60357.0,60351.0,0.3133]
[1720008314899,0.04831856,60357.0,60351.0,0.3133]
[1720008315250,0.03431856,60357.0,60351.0,0.3133]
[1720008315453,0.014,60354.0,60350.0,0.2]
[1720008316000,0.03431856,60357.0,60348.0,0.009185]
[1720008316001,0.2999,60356.0,60348.0,0.009185]
[1720008316231,0.2602988,60355.0,60348.0,0.009185]
[1720008316435,0.014,60354.0,60348.0,0.009185]
[1720008316641,0.014,60354.0,60349.0,0.3113]
[1720008316851,0.1,60355.0,60349.0,0.3113]
[1720008317233,0.014,60356.0,60349.0,0.3113]
[1720008317759,0.1745,60361.0,60349.0,0.3113]
[1720008317962,0.014,60354.0,60349.0,0.3113]
[1720008318155,0.2227055,60360.0,60349.0,0.3113]
[1720008318363,0.89989,60359.0,60349.0,0.3113]
[1720008318571,1.0601888,60359.0,60349.0,0.3113]
[1720008318777,0.014,60356.0,60349.0,0.3113]
[1720008318923,0.07181661,60355.0,60349.0,0.3113]
[1720008319135,0.1602988,60359.0,60349.0,0.3113]
[1720008319360,0.74259,60358.0,60349.0,0.3113]
[1720008319763,0.014,60355.0,60349.0,0.3113]
[1720008320372,0.1,60358.0,60349.0,0.3113]
[1720008320598,0.556879,60357.0,60351.0,0.18029386]
[1720008320943,0.1,60356.0,60351.0,0.18029386]
[1720008321326,0.06518427,60355.0,60352.0,0.18]
[1720008321530,0.014,60355.0,60352.0,0.18]
[1720008321731,0.014,60355.0,60353.0,0.1369]
[1720008322169,0.0139,60355.0,60353.0,0.1369]
[1720008322375,0.06521019,60354.0,60353.0,0.1369]
[1720008322808,0.09254704,60355.0,60353.0,0.1369]
[1720008323035,0.09254704,60354.0,60353.0,0.39734968]
[1720008323236,0.02733685,60354.0,60353.0,0.81004968]
[1720008323443,0.014,60355.0,60354.0,0.44049386]
[1720008323646,0.014,60355.0,60354.0,0.74209386]
[1720008323862,0.014,60355.0,60354.0,0.77626744]
[1720008324075,0.028,60355.0,60354.0,0.74209386]
[1720008324497,0.0139,60355.0,60354.0,0.71209386]
[1720008324911,0.0199,60355.0,60354.0,0.71209386]
[1720008325133,0.0199,60355.0,60354.0,0.87239266]
[1720008325371,0.006,60355.0,60354.0,0.87239266]
[1720008326195,0.02069479,60375.0,60365.0,0.18029386]
[1720008326398,0.06233556,60374.0,60369.0,0.08015582]
[1720008326608,0.06233556,60373.0,60369.0,0.08015582]
[1720008326813,0.06233556,60372.0,60369.0,0.08015582]
[1720008327018,0.1,60382.0,60365.0,0.2]
[1720008327019,0.06233556,60371.0,60365.0,0.2]
[1720008327242,0.06233556,60370.0,60365.0,0.2]
[1720008327447,0.06233556,60369.0,60365.0,0.2]
[1720008327657,0.06233556,60368.0,60365.0,0.2]
[1720008327899,0.06233556,60367.0,60365.0,0.2]
[1720008328100,0.06233556,60366.0,60365.0,0.2]
[1720008328306,0.06233556,60366.0,60363.0,0.2]
[1720008328512,0.06029509,60365.0,60363.0,0.2]
[1720008328714,0.06029509,60364.0,60363.0,0.2]
[1720008330204,0.07429509,60364.0,60363.0,0.2]
[1720008330408,0.08829509,60364.0,60363.0,0.2]
[1720008331008,0.028,60364.0,60363.0,0.2]
[1720008331207,0.028,60364.0,60363.0,0.41049386]
[1720008331414,0.028,60364.0,60363.0,0.71209386]
[1720008331621,0.028,60364.0,60363.0,0.68189386]
[1720008332290,0.08792411,60364.0,60363.0,0.71209386]
[1720008332496,0.028,60364.0,60363.0,0.87239266]
[1720008333318,0.0499413,60364.0,60363.0,0.87239266]
[1720008334780,0.04982227,60364.0,60363.0,0.84219266]
[1720008335253,0.04982227,60364.0,60363.0,0.87239266]
[1720008335796,0.04982227,60364.0,60363.0,0.84219266]
[1720008336195,0.04982227,60364.0,60363.0,0.87239266]
[1720008336652,0.04982227,60364.0,60363.0,0.68189386]
[1720008336842,0.04982227,60364.0,60363.0,0.2]
[1720008336843,0.028,60364.0,60363.0,0.2]
[1720008338067,0.014,60364.0,60363.0,0.2]
[1720008338273,0.12052055,60375.0,60363.0,0.2]
[1720008338480,1.11481367,60374.0,60363.0,0.2]
[1720008338657,0.014,60364.0,60363.0,0.2]
[1720008339017,0.03571419,60364.0,60363.0,0.2]
[1720008339223,0.03571419,60364.0,60357.0,0.2]
[1720008339470,0.04971419,60364.0,60360.0,0.08015582]
[1720008340090,0.02171419,60364.0,60360.0,0.08015582]
[1720008340489,0.03571419,60364.0,60360.0,0.08015582]
[1720008340680,0.03571419,60364.0,60361.0,0.18]
[1720008340890,0.02171419,60364.0,60362.0,0.1357]
[1720008341085,0.05981952,60364.0,60362.0,0.1357]
[1720008341290,0.07381952,60364.0,60362.0,0.1357]
[1720008342350,0.08781952,60364.0,60363.0,0.18029386]
[1720008342497,0.08781952,60364.0,60363.0,0.87419266]
[1720008343259,0.07381952,60364.0,60363.0,0.87419266]
[1720008343470,0.08781952,60364.0,60363.0,0.87419266]
[1720008344071,0.07381952,60364.0,60363.0,0.87419266]
[1720008344336,0.024,60364.0,60363.0,0.87419266]
[1720008344743,0.01,60364.0,60363.0,0.87419266]
[1720008345512,0.022,60364.0,60363.0,0.87419266]
[1720008348546,0.022,60364.0,60363.0,0.90419266]
[1720008349309,0.02083883,60383.0,60376.0,0.03]
[1720008349515,0.00084,60384.0,60379.0,0.18029386]
[1720008349736,0.00084,60384.0,60377.0,0.38445582]
[1720008349737,0.00084,60384.0,60382.0,0.18029386]
[1720008350111,0.00084,60384.0,60383.0,0.38029386]
[1720008350277,0.00084,60384.0,60383.0,0.2]
[1720008350997,0.00084,60384.0,60383.0,0.38029386]
[1720008351297,0.01484,60384.0,60383.0,0.38029386]
[1720008351700,0.01484,60384.0,60383.0,0.2]
[1720008352060,0.01484,60384.0,60383.0,0.201]
[1720008352061,0.02584,60384.0,60383.0,0.201]
[1720008352260,0.02584,60384.0,60383.0,0.001]
[1720008353280,0.01184,60384.0,60383.0,0.001]
[1720008353651,0.02084,60384.0,60383.0,0.001]
[1720008354654,0.01184,60384.0,60383.0,0.0011]
[1720008354854,0.00084,60384.0,60383.0,0.0001]
[1720008355160,0.02884,60384.0,60383.0,0.0011]
[1720008355359,0.02884,60384.0,60383.0,0.0001]
[1720008355572,0.20528212,60384.0,60383.0,0.0001]
[1720008355775,0.31628212,60384.0,60383.0,0.0011]
[1720008355996,0.30228212,60384.0,60383.0,0.0001]
[1720008356373,0.29928212,60384.0,60383.0,0.0011]
[1720008356577,0.31328212,60384.0,60383.0,0.0011]
[1720008357163,0.29928212,60384.0,60383.0,0.0011]
[1720008357538,0.31328212,60384.0,60383.0,0.0011]
[1720008357777,0.34883848,60384.0,60383.0,0.0011]
[1720008357945,0.34883848,60384.0,60383.0,0.0007]
[1720008358525,0.17239636,60384.0,60383.0,0.0007]
[1720008358729,0.24757705,60384.0,60383.0,0.0007]
[1720008358938,0.34757705,60384.0,60383.0,0.0008]
[1720008360068,0.31202069,60384.0,60383.0,0.0008]
[1720008361197,0.13684,60384.0,60383.0,0.0008]
[1720008361324,0.21193443,60384.0,60383.0,0.0008]
[1720008361519,0.31193443,60384.0,60383.0,0.0008]
[1720008364393,0.13684,60384.0,60383.0,0.0008]
[1720008364574,0.21193826,60384.0,60383.0,0.0008]
[1720008364759,0.34717941,60384.0,60383.0,0.0008]
[1720008365808,1.28544341,60384.0,60383.0,0.0008]
[1720008366504,1.76214835,60384.0,60383.0,0.0008]
[1720008367515,1.58723092,60384.0,60383.0,0.0008]
[1720008367652,1.78137,60384.0,60383.0,0.0008]
[1720008367859,1.78137253,60384.0,60383.0,0.0008]
[1720008368068,1.78137855,60384.0,60383.0,0.0008]
[1720008369762,2.08137855,60384.0,60383.0,0.0008]
[1720008370152,0.0331,60377.0,60367.0,0.55735582]
[1720008370267,1.60363407,60376.0,60367.0,0.4772]
[1720008370471,1.50733527,60375.0,60367.0,0.4772]
[1720008370702,0.98031061,60374.0,60367.0,0.4772]
[1720008371051,0.80017465,60373.0,60367.0,0.4772]
[1720008371176,0.65253359,60372.0,60367.0,0.4772]
[1720008371376,0.18763765,60371.0,60367.0,0.4772]
[1720008371576,0.18763765,60371.0,60366.0,0.2]
[1720008371577,0.08763765,60370.0,60366.0,0.2]
[1720008371814,0.1,60371.0,60366.0,0.2]
[1720008371815,0.08763765,60369.0,60366.0,0.2]
[1720008372063,0.19397361,60368.0,60366.0,0.2]
[1720008372264,0.18763765,60367.0,60366.0,0.2]
[1720008373523,0.18753765,60367.0,60366.0,0.2]
[1720008373732,0.08753765,60367.0,60366.0,0.2]
[1720008374062,0.08778998,60367.0,60366.0,0.2]
[1720008374482,0.08978998,60367.0,60366.0,0.2]
[1720008374854,0.08968998,60367.0,60365.0,0.1364]
[1720008375021,0.02490511,60366.0,60365.0,0.3364]
[1720008375642,0.02490511,60366.0,60365.0,0.51669386]
[1720008376171,0.02490511,60366.0,60365.0,0.3364]
[1720008376790,0.02590511,60366.0,60365.0,0.3364]
[1720008377026,0.02580511,60366.0,60365.0,0.3364]
[1720008377246,0.001,60366.0,60365.0,0.3364]
[1720008377486,0.02547982,60366.0,60365.0,0.3364]
[1720008377854,0.0255073,60366.0,60365.0,0.3364]
[1720008378288,0.0254073,60366.0,60365.0,0.3364]
[1720008378498,0.0254073,60366.0,60365.0,0.51669386]
[1720008378672,0.0253073,60366.0,60365.0,0.54689386]
[1720008378851,0.0253073,60366.0,60365.0,0.3364]
[1720008379261,0.0253073,60366.0,60365.0,0.71779386]
[1720008379673,0.002,60367.0,60365.0,0.41049386]
[1720008379871,0.002,60367.0,60366.0,0.52379386]
[1720008380072,0.13060712,60383.0,60366.0,0.21049386]
[1720008380417,0.65338,60382.0,60371.0,0.08015582]
[1720008380671,0.68636284,60381.0,60372.0,0.3117]
[1720008380799,0.45426106,60380.0,60372.0,0.3117]
[1720008381006,0.45424606,60379.0,60372.0,0.3117]
[1720008381200,0.02448106,60378.0,60373.0,0.18029386]
[1720008381404,0.02448106,60377.0,60373.0,0.18029386]
[1720008381601,0.20610091,60382.0,60375.0,0.18029386]
[1720008381602,0.02448106,60376.0,60375.0,0.18029386]
[1720008381805,0.02448106,60376.0,60375.0,0.52089386]
[1720008382012,0.02448106,60376.0,60375.0,0.3104]
[1720008382419,0.02448106,60376.0,60375.0,0.49069386]
[1720008382620,0.02448106,60376.0,60375.0,0.3104]
[1720008382840,0.02438106,60376.0,60375.0,0.49069386]
[1720008383237,0.03828106,60376.0,60375.0,0.49069386]
[1720008383439,0.028,60376.0,60375.0,0.49069386]
[1720008383648,0.06638893,60376.0,60375.0,0.49069386]
[1720008383901,0.06638893,60376.0,60375.0,0.52089386]
[1720008384102,0.08038893,60376.0,60375.0,0.52089386]
[1720008384507,0.08028893,60376.0,60375.0,0.52089386]
[1720008385186,0.08028893,60376.0,60375.0,0.49069386]
[1720008385335,0.08028893,60376.0,60375.0,0.52089386]
[1720008385548,0.08028893,60376.0,60375.0,0.49069386]
[1720008386904,0.0279,60376.0,60375.0,0.49069386]
[1720008387058,0.0279,60376.0,60375.0,0.3104]
[1720008387261,0.0279,60376.0,60375.0,0.49069386]
[1720008387546,0.08004113,60376.0,60375.0,0.49069386]
[1720008389716,0.08004113,60376.0,60375.0,0.52089386]
[1720008390100,0.0279,60376.0,60375.0,0.52089386]
[1720008390688,0.07970976,60376.0,60375.0,0.52089386]
[1720008391842,0.07970976,60376.0,60375.0,0.72089386]
[1720008393229,0.09365503,60376.0,60375.0,0.72089386]
[1720008393429,0.09430925,60376.0,60375.0,0.72089386]
[1720008393774,0.09431201,60376.0,60375.0,0.72089386]
[1720008395460,0.0951018,60376.0,60375.0,0.72089386]
[1720008396710,0.0279,60376.0,60375.0,0.72089386]
[1720008396913,0.08084223,60376.0,60375.0,0.72089386]
[1720008397115,0.09529361,60376.0,60375.0,0.72089386]
[1720008399968,0.0279,60376.0,60375.0,0.72089386]
[1720008400315,0.04198998,60376.0,60375.0,0.72089386]
[1720008400655,0.09458592,60376.0,60375.0,0.72089386]
[1720008402268,0.09458592,60376.0,60375.0,0.5104]
[1720008402432,0.09458592,60376.0,60375.0,0.2]
[1720008403255,0.10645531,60376.0,60375.0,0.2]
[1720008403452,0.20645531,60376.0,60375.0,0.2]
[1720008403651,0.1279,60376.0,60375.0,0.2]
[1720008403851,0.20645571,60376.0,60375.0,0.2]
[1720008404418,0.1556,60376.0,60375.0,0.2]
[1720008404600,0.14720488,60376.0,60375.0,0.2]
[1720008404799,0.24720488,60376.0,60375.0,0.2]
[1720008405594,0.23330488,60376.0,60375.0,0.2]
[1720008405793,0.22893537,60376.0,60371.0,0.0001]
[1720008405994,0.19160488,60375.0,60371.0,0.0001]
[1720008406190,0.11930488,60374.0,60370.0,0.2]
[1720008406372,0.29983861,60373.0,60370.0,0.2]
[1720008406569,0.09170613,60372.0,60371.0,0.2]
[1720008407712,0.19983861,60372.0,60371.0,0.2]
[1720008407940,0.19983861,60372.0,60370.0,0.2]
[1720008407941,0.29983861,60372.0,60370.0,0.2]
[1720008408160,0.19170613,60371.0,60370.0,0.2]
[1720008408894,0.29973861,60371.0,60370.0,0.2]
[1720008409505,0.29963861,60371.0,60370.0,0.2]
[1720008409897,0.29963861,60371.0,60369.0,0.2]
[1720008410094,0.06480441,60370.0,60369.0,0.2]
[1720008410300,0.17293689,60370.0,60369.0,0.2]
[1720008410500,0.27293689,60370.0,60369.0,0.2]
[1720008410752,0.27293689,60370.0,60368.0,0.2]
[1720008410950,0.16480441,60369.0,60368.0,0.2]
[1720008411760,0.27293689,60369.0,60368.0,0.2]
[1720008412311,0.28693689,60369.0,60368.0,0.2]
[1720008412507,0.28693689,60369.0,60368.0,0.19776]
[1720008412908,0.28640296,60369.0,60368.0,0.19776]
[1720008413273,0.30040296,60369.0,60368.0,0.19776]
[1720008413913,0.28640296,60369.0,60368.0,0.19776]
[1720008414273,0.30040296,60369.0,60368.0,0.19776]
[1720008414922,0.28640296,60369.0,60368.0,0.19776]
[1720008415282,0.30040296,60369.0,60368.0,0.19776]
[1720008416153,0.30028522,60369.0,60368.0,0.19776]
[1720008416509,0.30028526,60369.0,60368.0,0.19776]
[1720008417834,0.19244891,60369.0,60368.0,0.19776]
[1720008418015,0.09244891,60369.0,60368.0,0.19776]
[1720008418244,0.20026822,60369.0,60368.0,0.37805386]
[1720008418455,0.30026822,60369.0,60368.0,0.19776]
[1720008419545,0.21895265,60369.0,60368.0,0.19776]
[1720008420552,0.21895265,60369.0,60366.0,0.19796]
[1720008420767,0.15476301,60369.0,60368.0,0.19776]
[1720008420975,0.24555885,60369.0,60368.0,0.19776]
[1720008421178,0.21879584,60369.0,60366.0,0.0002]
[1720008421382,0.0277,60367.0,60366.0,0.0002]
[1720008421810,0.22615909,60367.0,60366.0,0.0002]
[1720008422019,0.32616442,60367.0,60366.0,0.0002]
[1720008422207,0.37367861,60367.0,60366.0,0.0002]
[1720008422823,0.38767861,60367.0,60366.0,0.0002]
[1720008423049,0.11517836,60367.0,60366.0,0.0002]
[1720008423270,0.02097743,60371.0,60366.0,0.0002]
[1720008423640,0.32417049,60376.0,60366.0,0.0002]
[1720008423641,0.4602988,60370.0,60366.0,0.0002]
[1720008424037,1.546702,60369.0,60366.0,0.0002]
[1720008424240,0.1602988,60368.0,60366.0,0.0002]
[1720008424509,0.872385,60367.0,60366.0,0.0002]
[1720008424656,1.0326838,60367.0,60366.0,0.0002]
[1720008424855,1.20265053,60367.0,60366.0,0.0002]
[1720008425055,1.31665053,60367.0,60366.0,0.0002]
[1720008425265,1.89485435,60367.0,60366.0,0.0002]
[1720008425463,0.11740382,60362.0,60348.0,0.206945]
[1720008425641,2.6886738,60361.0,60349.0,0.19776]
[1720008425868,2.10197806,60360.0,60349.0,0.19776]
[1720008426073,2.10197806,60360.0,60348.0,0.009185]
[1720008426074,0.2988,60357.0,60348.0,0.009185]
[1720008426272,1.3761668,60356.0,60348.0,0.009185]
[1720008426470,0.719079,60355.0,60348.0,0.009185]
[1720008426670,0.7340238,60354.0,60348.0,0.009185]
[1720008426895,0.26387243,60354.0,60348.0,0.009185]
[1720008427095,0.1,60353.0,60348.0,0.009185]
[1720008427300,0.2602988,60353.0,60348.0,0.009185]
[1720008427519,0.1,60353.0,60350.0,0.08015582]
[1720008428277,0.2988,60361.0,60348.0,0.009185]
[1720008428278,0.1,60360.0,60349.0,0.1479]
[1720008428563,0.6897628,60359.0,60350.0,0.23095582]
[1720008428854,0.517594,60358.0,60350.0,0.23095582]
[1720008428979,0.62336005,60357.0,60350.0,0.23095582]
[1720008429198,0.1,60356.0,60351.0,0.18259618]
[1720008429397,0.270968,60356.0,60351.0,0.18259618]
[1720008429607,0.09479325,60357.0,60350.0,0.23215582]
[1720008429822,0.170968,60356.0,60350.0,0.23215582]
[1720008430069,0.1,60355.0,60350.0,0.414752]
[1720008430287,0.1,60355.0,60350.0,0.23215582]
[1720008431048,0.04944041,60354.0,60350.0,0.23215582]
[1720008431271,0.04944041,60353.0,60350.0,0.23215582]
[1720008431587,0.04944041,60352.0,60350.0,0.23215582]
[1720008431751,0.04944041,60351.0,60350.0,0.23215582]
[1720008431962,0.014,60356.0,60352.0,0.18259618]
[1720008432168,0.04941428,60355.0,60353.0,0.18259618]
[1720008432378,0.04941428,60354.0,60352.0,0.18259618]
[1720008432590,0.04941428,60353.0,60352.0,0.21399618]
[1720008432807,0.04941428,60353.0,60352.0,0.44729618]
[1720008433008,0.04941428,60353.0,60352.0,0.2647]
[1720008433402,0.04941428,60353.0,60352.0,0.44729618]
[1720008433600,0.05969934,60353.0,60352.0,0.2647]
[1720008433787,0.05969934,60353.0,60352.0,0.44729618]
[1720008434207,0.05854467,60353.0,60352.0,0.44729618]
[1720008434415,0.05854467,60354.0,60353.0,0.0012]
[1720008434642,0.014,60355.0,60354.0,0.0012]
[1720008434984,0.0725461,60355.0,60354.0,0.0012]
[1720008435160,0.0585461,60355.0,60354.0,0.0012]
[1720008435370,0.0585461,60359.0,60350.0,0.1501]
[1720008435539,0.014,60353.0,60350.0,0.1489]
[1720008435743,0.0585461,60352.0,60350.0,0.1501]
[1720008436204,0.0585461,60352.0,60350.0,0.1489]
[1720008436411,0.0585461,60351.0,60350.0,0.1489]
[1720008436966,0.0585461,60351.0,60349.0,0.31316]
[1720008437196,0.0585461,60350.0,60349.0,0.19786]
[1720008437396,0.014,60354.0,60349.0,0.19786]
[1720008437563,0.01028527,60353.0,60349.0,0.19786]
[1720008437765,0.0585461,60352.0,60349.0,0.0001]
[1720008437966,0.0725461,60351.0,60349.0,0.19786]
[1720008438207,0.0585461,60350.0,60349.0,0.19786]
[1720008438824,0.0585461,60353.0,60349.0,0.19786]
[1720008439024,0.08106543,60352.0,60349.0,0.19786]
[1720008439183,0.0585461,60351.0,60350.0,0.08015582]
[1720008439583,0.15248379,60356.0,60350.0,0.08015582]
[1720008439790,1.1068471,60355.0,60350.0,0.08015582]
[1720008440149,0.0585461,60354.0,60350.0,0.08015582]
[1720008440662,0.014,60351.0,60350.0,0.08015582]
[1720008440772,0.08651082,60351.0,60350.0,0.08015582]
[1720008441185,0.07249898,60351.0,60349.0,0.2601]
[1720008441383,0.05849898,60350.0,60349.0,0.0001]
[1720008441824,0.05849898,60350.0,60349.0,0.19786]
[1720008442004,0.05849898,60350.0,60349.0,0.0001]
[1720008442221,0.0681931,60350.0,60349.0,0.0001]
[1720008442549,0.0784767,60350.0,60349.0,0.0001]
[1720008442781,0.05849898,60350.0,60349.0,0.0001]
[1720008443146,0.06221538,60350.0,60349.0,0.0001]
[1720008443350,0.07249898,60350.0,60349.0,0.0001]
[1720008443557,0.11781117,60350.0,60349.0,0.0001]
[1720008443770,0.2659406,60350.0,60349.0,0.0001]
[1720008443985,1.24175466,60350.0,60349.0,0.0001]
[1720008444185,1.22175466,60350.0,60349.0,0.0001]
[1720008444590,1.23575466,60350.0,60349.0,0.0001]
[1720008445765,0.2799406,60350.0,60349.0,0.0001]
[1720008446354,0.18641356,60350.0,60349.0,0.0001]
[1720008446655,0.08641356,60350.0,60349.0,0.0001]
[1720008446876,0.08638598,60350.0,60348.0,0.00736744]
[1720008447081,0.05838598,60349.0,60348.0,0.27011944]
[1720008447353,0.05838598,60349.0,60348.0,0.08752326]
[1720008448063,0.05780056,60349.0,60348.0,0.08752326]
[1720008448265,0.05770056,60349.0,60348.0,0.08752326]
[1720008448670,0.04810087,60349.0,60348.0,0.00736744]
[1720008449464,0.07610087,60349.0,60348.0,0.00736744]
[1720008450057,0.028,60349.0,60348.0,0.00736744]
[1720008450291,0.07337111,60349.0,60348.0,0.00736744]
[1720008451195,0.07337111,60349.0,60348.0,0.08752326]
[1720008451196,0.05937111,60349.0,60348.0,0.08752326]
[1720008451506,0.07337111,60349.0,60348.0,0.08752326]
[1720008452556,0.08278987,60349.0,60348.0,0.08752326]
[1720008452751,0.18268987,60349.0,60348.0,0.08752326]
[1720008452973,0.16878987,60349.0,60348.0,0.08752326]
[1720008453376,0.13741876,60349.0,60348.0,0.08752326]
[1720008453576,0.27495207,60349.0,60348.0,0.08752326]
[1720008453775,0.26095932,60349.0,60348.0,0.08752326]
[1720008454140,0.27485932,60349.0,60348.0,0.08752326]
[1720008454341,0.26544056,60349.0,60348.0,0.08872326]
[1720008454968,0.17383208,60349.0,60348.0,0.08872326]
[1720008455171,0.17383208,60349.0,60348.0,0.35512326]
[1720008455172,0.07383208,60349.0,60348.0,0.35512326]
[1720008456729,0.07383208,60349.0,60348.0,0.53771944]
[1720008457500,0.1188304,60349.0,60348.0,0.35512326]
[1720008457710,0.26476248,60349.0,60348.0,0.35512326]
[1720008458135,0.27504656,60349.0,60348.0,0.00736744]
[1720008458335,0.30454865,60349.0,60348.0,0.00736744]
[1720008458615,0.28644865,60349.0,60348.0,0.00736744]
[1720008459056,0.25694656,60349.0,60348.0,0.00736744]